Workbook

Sheet 名单
A1: 序号 | B1: 复试号 | C1: 准考证号码 | D1: 姓名 | E1: 报考学位类型 | F1: 报考研究方向代码 | G1: 报考研究方向名称 | H1: 总成绩 | I1: 复试成绩 | J1: 总分 | K1: 排名 | L1: 录取结果 | M1: 录取导师 | N1: 备注
A2: 1 | B2: 10579 | C2: 105704567892027 | D2: 宋超玲 | E2: 专业学位 | F2: 105124 | G2: 超声医学 | H2: 374 | I2: 84.55 | J2: =I2*0.5+H2*0.1 -> 79.68 | K2: 1 | L2: 拟录取 | M2: 尚宁
A3: 2 | B3: 10589 | C3: 105704567892944 | D3: 龙琦 | E3: 专业学位 | F3: 105124 | G3: 超声医学 | H3: 360 | I3: 82.45 | J3: =I3*0.5+H3*0.1 -> 77.23 | K3: 2 | L3: 拟录取 | M3: 王丽敏
A4: 3 | B4: 10596 | C4: 105704567892008 | D4: 罗莉娟 | E4: 专业学位 | F4: 105124 | G4: 超声医学 | H4: 348 | I4: 83.55 | J4: =I4*0.5+H4*0.1 -> 76.58 | K4: 3 | L4: 拟录取 | M4: 陈丹
A5: 4 | B5: 10601 | C5: 105704567892512 | D5: 韩嫱琳 | E5: 专业学位 | F5: 105124 | G5: 超声医学 | H5: 329 | I5: 82.45 | J5: =I5*0.5+H5*0.1 -> 74.13 | K5: 4
A6: 5 | B6: 10595 | C6: 105704567892688 | D6: 黎扬玲 | E6: 专业学位 | F6: 105124 | G6: 超声医学 | H6: 352 | I6: 73.60 | J6: 72.00 | K6: 5
A7: 6 | B7: 10590 | C7: 105704567892123 | D7: 谢丽敏 | E7: 专业学位 | F7: 105124 | G7: 超声医学 | H7: 357 | I7: 72.45 | J7: =I7*0.5+H7*0.1 -> 71.93 | K7: 6
A8: 1 | B8: 10621 | C8: 105704567893344 | D8: 李永熙 | E8: 专业学位 | F8: 105102 | G8: 儿科学 | H8: 361 | I8: 73.24 | J8: =I8*0.5+H8*0.1 -> 72.72 | K8: 1 | L8: 拟录取 | M8: 罗先琼
A9: 2 | B9: 10609 | C9: 105704567892969 | D9: 曾锡忠 | E9: 专业学位 | F9: 105102 | G9: 儿科学 | H9: 390 | I9: 61.7 | J9: 69.85 | K9: 2 | L9: 拟录取 | M9: 刘舒
A10: 3 | B10: 10632 | C10: 105704567891587 | D10: 陈雅静 | E10: 专业学位 | F10: 105102 | G10: 儿科学 | H10: 344 | I10: 69.92 | J10: 69.36 | K10: 3 | L10: 拟录取 | M10: 聂川
A11: 4 | B11: 10637 | C11: 105704567892129 | D11: 陈晓橦 | E11: 专业学位 | F11: 105102 | G11: 儿科学 | H11: 340 | I11: 69.55 | J11: 68.78 | K11: 4 | L11: 拟录取 | M11: 任建兵
A12: 5 | B12: 10638 | C12: 105704567891404 | D12: 董若曦 | E12: 专业学位 | F12: 105102 | G12: 儿科学 | H12: 339 | I12: 68.1 | J12: 67.95 | K12: 5 | L12: 拟录取 | M12: 吴婕翎
A13: 6 | B13: 10644 | C13: 105704567892098 | D13: 陈炜 | E13: 专业学位 | F13: 105102 | G13: 儿科学 | H13: 325 | I13: 64.75 | J13: 64.88 | K13: 6 | L13: 拟录取 | M13: 陈广道
A14: 7 | B14: 10647 | C14: 105704567891458 | D14: 林佳苇 | E14: 专业学位 | F14: 105102 | G14: 儿科学 | H14: 323 | I14: 64.75 | J14: 64.68 | K14: 7 | L14: 拟录取 | M14: 张春一
A15: 1 | B15: 10698 | C15: 105704567892658 | D15: 龙思羽 | E15: 专业学位 | F15: 105123 | G15: 放射影像学 | H15: 371 | I15: 79.00 | J15: =I15*0.5+H15*0.1 -> 76.60 | K15: 1 | L15: 拟录取 | M15: 张嫣
A16: 2 | B16: 10747 | C16: 105704567891907 | D16: 张嘉辰 | E16: 专业学位 | F16: 105123 | G16: 放射影像学 | H16: 324 | I16: 73.00 | J16: =I16*0.5+H16*0.1 -> 68.90 | K16: 2
A17: 1 | B17: 10791 | C17: 105704567892220 | D17: 邱小诗 | E17: 专业学位 | F17: 105115 | G17: 妇产科学 | H17: 362 | I17: 88.25 | J17: =I17*0.5+H17*0.1 -> 80.33 | K17: 1 | L17: 拟录取 | M17: 孙小丽
A18: 2 | B18: 10787 | C18: 105704567891693 | D18: 王浩 | E18: 专业学位 | F18: 105115 | G18: 妇产科学 | H18: 365 | I18: 87.00 | J18: 80.00 | K18: 2 | L18: 拟录取 | M18: 李荔
A19: 3 | B19: 10794 | C19: 105704567892535 | D19: 吴紫云 | E19: 专业学位 | F19: 105115 | G19: 妇产科学 | H19: 357 | I19: 84.10 | J19: 77.75 | K19: 3 | L19: 拟录取 | M19: 刘婷艳
A20: 4 | B20: 10819 | C20: 105704567891437 | D20: 白霞 | E20: 专业学位 | F20: 105115 | G20: 妇产科学 | H20: 338 | I20: 87.50 | J20: 77.55 | K20: 4 | L20: 拟录取 | M20: 王三峰
A21: 5 | B21: 10803 | C21: 105704567892994 | D21: 刘昊明 | E21: 专业学位 | F21: 105115 | G21: 妇产科学 | H21: 352 | I21: 80.15 | J21: 75.28 | K21: 5 | L21: 拟录取 | M21: 韦相才
A22: 6 | B22: 10815 | C22: 105704567891649 | D22: 周昕 | E22: 专业学位 | F22: 105115 | G22: 妇产科学 | H22: 341 | I22: 79.90 | J22: 74.05 | K22: 6 | L22: 拟录取 | M22: 刘风华
A23: 7 | B23: 10802 | C23: 105704567891813 | D23: 周沛垚 | E23: 专业学位 | F23: 105115 | G23: 妇产科学 | H23: 352 | I23: 77.35 | J23: 73.88 | K23: 7 | L23: 拟录取 | M23: 夏建红
A24: 8 | B24: 10836 | C24: 105704567893317 | D24: 段兴瑞 | E24: 专业学位 | F24: 105115 | G24: 妇产科学 | H24: 320 | I24: 81.60 | J24: 72.80 | K24: 8 | L24: 拟录取 | M24: 万舰
A25: 9 | B25: 10820 | C25: 105704567892037 | D25: 黄涓 | E25: 专业学位 | F25: 105115 | G25: 妇产科学 | H25: 337 | I25: 74.25 | J25: 70.83 | K25: 9 | L25: 拟录取 | M25: 苏念军
A26: 10 | B26: 10828 | C26: 105704567891486 | D26: 邓艳玲 | E26: 专业学位 | F26: 105115 | G26: 妇产科学 | H26: 326 | I26: 74.70 | J26: 69.95 | K26: 10 | L26: 拟录取 | M26: 刘国成
A27: 11 | B27: 10831 | C27: 105704567892408 | D27: 招嘉宝 | E27: 专业学位 | F27: 105115 | G27: 妇产科学 | H27: 324 | I27: 54.60 | J27: 59.70 | K27: 11 | N27: 复试成绩未达要求
A28: 12 | B28: 10834 | C28: 105704567892226 | D28: 崔雅梦 | E28: 专业学位 | F28: 105115 | G28: 妇产科学 | H28: 321 | I28: 51.95 | J28: 58.08 | K28: 12 | N28: 复试成绩未达要求
A29: 1 | B29: 11026 | C29: 105704567892327 | D29: 辛涵 | E29: 专业学位 | F29: 105118 | G29: 麻醉学 | H29: 320 | I29: 84.95 | J29: =I29*0.5+H29*0.1 -> 74.48 | K29: 1 | L29: 拟录取 | M29: 莫力
A30: 2 | B30: 11000 | C30: 105704567892772 | D30: 陈珂珂 | E30: 专业学位 | F30: 105118 | G30: 麻醉学 | H30: 346 | I30: 78.25 | J30: 73.73 | K30: 2 | L30: 拟录取 | M30: 贾杰
A31: 3 | B31: 11027 | C31: 105704567892771 | D31: 黄嘉瑶 | E31: 专业学位 | F31: 105118 | G31: 麻醉学 | H31: 320 | I31: 82.9 | J31: 73.45 | K31: 3 | L31: 拟录取 | M31: 黎昆伟
A32: 4 | B32: 11017 | C32: 105704567891563 | D32: 陈惠 | E32: 专业学位 | F32: 105118 | G32: 麻醉学 | H32: 334 | I32: 78.95 | J32: 72.88 | K32: 4 | L32: 拟录取 | M32: 胡祖荣
A33: 5 | B33: 11015 | C33: 105704567893024 | D33: 陈玉慧 | E33: 专业学位 | F33: 105118 | G33: 麻醉学 | H33: 339 | I33: 76.05 | J33: 71.93 | K33: 5
A35: 序号 | B35: 复试号 | C35: 准考证号码 | D35: 姓名 | E35: 报考学位类型 | F35: 调整研究方向代码 | G35: 调整意向专业 | H35: 初试成绩 | I35: 调整复试成绩 | J35: 总分 | K35: 录取结果 | L35: 拟录取导师 | M35: 备注
A36: 1 | B36: 10831 | C36: 105704567892408 | D36: 招嘉宝 | E36: 专业学位 | F36: 105126 | G36: 医学遗传学 | H36: 324 | I36: 63.20 | J36: =I36*0.5+H36*0.1 -> 64.00 | K36: 拟录取 | L36: 杜丽
A37: 2 | B37: 10595 | C37: 105704567892688 | D37: 黎扬玲 | E37: 专业学位 | F37: 105115 | G37: 妇产科学 | H37: 352 | I37: 57.20 | J37: =I37*0.5+H37*0.1 -> 63.80 | M37: 复试成绩未达要求
A38: 3 | B38: 10590 | C38: 105704567892123 | D38: 谢丽敏 | E38: 专业学位 | F38: 105115 | G38: 妇产科学 | H38: 357 | I38: 55.25 | J38: =I38*0.5+H38*0.1 -> 63.33 | M38: 复试成绩未达要求
A39: 4 | B39: 10601 | C39: 105704567892512 | D39: 韩嫱琳 | E39: 专业学位 | F39: 105115 | G39: 妇产科学 | H39: 329 | I39: 59.05 | J39: =I39*0.5+H39*0.1 -> 62.43 | M39: 复试成绩未达要求
A40: 7 | B40: 10834 | C40: 105704567892226 | D40: 崔雅梦 | E40: 专业学位 | F40: 105120 | G40: 临床检验诊断学 | H40: 321 | I40: 52.15 | J40: =I40*0.5+H40*0.1 -> 58.18 | M40: 复试成绩未达要求
